bitfinex/quotes_SOLUSD_20260115
["timestamp","ask_amount","ask_price","bid_price","bid_amount"]
[1768492094354,2.90055088,142.01,141.93,12.84]
[1768492094556,6.79379382,142.0,141.94,2.80517924]
[1768492094758,6.79379382,142.0,141.94,9.85005634]
[1768492094958,7.04230574,142.0,141.94,9.85005634]
[1768492095172,7.04230574,142.0,141.95,2.80517924]
[1768492095674,7.04230574,142.0,141.93,22.6905219]
[1768492095675,9.6943447,141.99,141.93,22.6905219]
[1768492095868,2.90055088,141.99,141.93,22.6905219]
[1768492096073,2.90055088,141.99,141.94,7.04522636]
[1768492096477,2.90055088,141.99,141.9,2.80517924]
[1768492096780,9.94478766,141.97,141.9,9.85203671]
[1768492097078,6.79379382,141.96,141.9,9.85203671]
[1768492097474,6.79379382,141.96,141.91,2.80517924]
[1768492097667,9.94478766,141.97,141.91,2.80517924]
[1768492097876,2.90055088,141.96,141.91,2.80517924]
[1768492098078,9.6943447,141.96,141.91,2.80517924]
[1768492098269,7.04423678,141.97,141.91,9.85186039]
[1768492098470,13.8380306,141.97,141.91,9.85186039]
[1768492098669,9.94478766,141.97,141.91,9.85186039]
[1768492098856,6.79379382,141.96,141.91,2.80517924]
[1768492099059,2.90055088,141.94,141.87,9.85374521]
[1768492099274,9.6943447,141.93,141.87,9.85374521]
[1768492099579,9.6943447,141.93,141.87,9.85373265]
[1768492099785,12.84,141.94,141.88,2.80517924]
[1768492099967,2.90055088,141.95,141.89,2.80517924]
[1768492100474,2.90055088,141.91,141.85,9.95476539]
[1768492100660,2.90055088,141.91,141.86,2.80517924]
[1768492100863,2.90055088,141.91,141.85,0.1]
[1768492101080,2.90112003,141.89,141.85,0.1]
[1768492101256,2.90112003,141.94,141.85,9.85506049]
[1768492101457,2.90112003,141.94,141.86,2.70544918]
[1768492101661,2.90112003,141.92,141.85,0.1]
[1768492101876,2.90112003,141.92,141.8,5.34408856]
[1768492101877,2.90112003,141.89,141.8,2.70544918]
[1768492102465,9.69491385,141.87,141.8,2.70544918]
[1768492102665,9.69491385,141.87,141.8,9.499243]
[1768492102864,2.90112003,141.86,141.8,2.70544918]
[1768492103070,2.90112003,141.86,141.8,9.75754622]
[1768492103266,2.90112003,141.86,141.8,2.70544918]
[1768492103683,9.69491385,141.86,141.8,9.499243]
[1768492103989,9.69491385,141.86,141.8,16.55133033]
[1768492104186,9.57102609,141.86,141.79,3.32888517]
[1768492104396,9.82555366,141.88,141.81,2.78387327]
[1768492104694,9.57102609,141.87,141.81,2.78387327]
[1768492105270,9.57102609,141.88,141.81,2.78387327]
[1768492105485,9.82486428,141.9,141.83,2.78387327]
[1768492105678,2.77723227,141.89,141.83,2.78387327]
[1768492105878,6.79379382,141.9,141.84,7.0501974]
[1768492106187,16.61734869,141.92,141.85,2.78387327]
[1768492106373,16.61734869,141.92,141.85,9.57766709]
[1768492106579,16.61734869,141.92,141.85,2.78387327]
[1768492106883,2.77723227,141.93,141.86,2.78387327]
[1768492107202,6.79379382,141.91,141.86,2.78387327]
[1768492107487,9.82361571,141.92,141.86,2.78387327]
[1768492107705,9.82361571,141.92,141.84,7.0501974]
[1768492107706,2.77723227,141.93,141.84,7.0501974]
[1768492107867,2.77723227,141.94,141.86,2.78387327]
[1768492108161,2.77723227,141.94,141.88,2.78387327]
[1768492108363,9.57102609,141.96,141.89,2.78387327]
[1768492108592,2.77723227,141.94,141.87,6.79379382]
[1768492108887,2.77723227,141.94,141.85,24.67362178]
[1768492108888,1.20099997,141.99,141.94,2.78387327]
[1768492109087,1.20099997,141.99,141.94,2.75387327]
[1768492109264,9.81960269,142.0,141.94,2.75387327]
[1768492109586,9.81960269,142.0,141.94,2.72387327]
[1768492109778,9.81960269,142.0,141.91,12.86]
[1768492109779,2.77723227,141.99,141.93,6.79379382]
[1768492109989,9.82022039,141.99,141.93,13.83930774]
[1768492110284,9.82022039,141.99,141.93,7.04551392]
[1768492110466,2.77723227,141.97,141.91,7.04637566]
[1768492110667,6.79379382,141.98,141.91,6.79379382]
[1768492110889,9.82022039,141.99,141.93,7.04570422]
[1768492111078,9.82022039,141.99,141.93,13.83949804]
[1768492111279,2.77723227,141.99,141.93,13.83949804]
[1768492111574,2.77723227,141.99,141.93,27.4438944]
[1768492111892,16.6140494,141.99,141.93,9.82957749]
[1768492112068,9.82025558,141.99,141.93,16.62337131]
[1768492112269,16.6140494,141.99,141.93,16.62337131]
[1768492112789,9.82025558,141.99,141.93,16.62337131]
[1768492113369,2.77723227,141.99,141.93,16.62337131]
[1768492113565,16.61380073,141.99,141.93,9.82957749]
[1768492113877,9.82000691,141.99,141.93,16.62337131]
[1768492114089,2.77723227,141.99,141.93,16.63174336]
[1768492114394,2.77723227,141.99,141.94,6.80216587]
[1768492114592,2.77723227,141.96,141.91,7.04666931]
[1768492114913,15.63723227,141.96,141.89,9.58603914]
[1768492115091,15.63723227,141.96,141.9,7.04687979]
[1768492115389,29.99038797,142.01,141.89,9.58603914]
[1768492115390,22.68072051,141.98,141.92,9.82970223]
[1768492115694,29.48288638,141.98,141.92,2.78387327]
[1768492115869,47.09100019,141.98,141.92,2.78387327]
[1768492116070,47.09100019,141.98,141.92,9.83003807]
[1768492116071,40.28883432,141.98,141.92,9.83003807]
[1768492116296,47.09100019,141.98,141.92,2.78387327]
[1768492116689,2.77723227,141.96,141.9,13.8493254]
[1768492116864,37.51160205,141.98,141.9,13.8493254]
[1768492117069,22.68072051,141.98,141.92,17.99394977]
[1768492117594,10.94109556,141.97,141.91,7.04670782]
[1768492117770,2.77723227,141.97,141.9,28.56483282]
[1768492117971,2.77723227,141.97,141.92,7.04617463]
[1768492118286,2.77723227,141.97,141.91,17.9944312]
[1768492118491,7.04348824,141.98,141.92,17.99393176]
[1768492118696,7.04348824,141.98,141.92,9.83006847]
[1768492118904,10.94109556,141.97,141.9,2.78387327]
[1768492119276,2.77723227,141.97,141.9,10.94773656]
[1768492119473,7.04423781,141.96,141.91,10.94773656]
[1768492120081,7.04423781,141.96,141.91,2.78387327]
[1768492120987,2.77723227,141.91,141.84,2.78387327]
[1768492121175,10.94269953,141.91,141.86,7.04885642]
[1768492121372,2.77723227,141.91,141.87,7.04868117]
[1768492121577,12.86,141.94,141.88,2.78387327]
[1768492121782,12.86,141.94,141.89,7.04769874]
[1768492121986,12.86,141.94,141.88,9.83175488]
[1768492121987,15.63723227,141.94,141.88,9.83175488]
[1768492122179,15.63723227,141.94,141.88,2.78387327]
[1768492122180,23.80269953,141.94,141.88,2.78387327]
[1768492122685,30.84833319,141.94,141.88,2.78387327]
[1768492122895,10.94269953,141.93,141.86,9.83296708]
[1768492123194,2.77723227,141.93,141.86,9.83296708]
[1768492123396,19.90563366,141.94,141.85,2.78387327]
[1768492123397,2.77723227,141.92,141.85,2.78387327]
[1768492123986,8.16546726,141.91,141.85,2.78387327]
[1768492124187,2.77723227,141.92,141.85,9.83343414]
[1768492124389,10.94269953,141.91,141.85,9.83344162]
[1768492124585,9.8231973,141.93,141.86,9.83306343]
[1768492124782,8.16546726,141.92,141.86,9.83306343]
[1768492124996,8.16546726,141.92,141.86,2.78387327]
[1768492125373,10.94269953,141.93,141.87,2.78387327]
[1768492125909,2.77723227,141.9,141.82,9.83503475]
[1768492126078,15.63723227,141.89,141.82,2.78387327]
[1768492126400,2.77723227,141.89,141.82,9.83501486]
[1768492126598,2.77723227,141.89,141.83,2.78387327]
[1768492126787,2.77723227,141.88,141.81,2.78387327]
[1768492126990,8.16546726,141.86,141.8,2.78387327]
[1768492127299,2.77723227,141.87,141.81,9.83546951]
[1768492127793,16.06513731,141.87,141.81,2.78387327]
[1768492127997,2.77723227,141.87,141.8,7.05204381]
[1768492128196,13.28790504,141.86,141.8,9.83591708]
[1768492128397,2.77723227,141.87,141.8,9.83591708]
[1768492128585,2.77723227,141.89,141.82,7.05077799]
[1768492128907,13.28790504,141.88,141.82,9.83465126]
[1768492129089,13.28790504,141.87,141.82,9.83465126]
[1768492129405,2.77723227,141.91,141.83,2.78387327]
[1768492129601,13.28790504,141.92,141.85,2.78387327]
[1768492129802,13.28790504,141.92,141.86,2.78387327]
[1768492129995,15.63723227,141.93,141.86,2.78387327]
[1768492130199,15.63723227,141.93,141.87,2.78387327]
[1768492130396,13.28790504,141.92,141.87,2.78387327]
[1768492130790,16.06513731,141.93,141.87,2.78387327]
[1768492130990,2.67751166,141.92,141.83,2.74982165]
[1768492131189,13.28790504,141.88,141.84,9.79966894]
[1768492131406,13.28790504,141.89,141.84,7.05004187]
[1768492131584,13.28790504,141.88,141.83,9.80036621]
[1768492131785,2.67751166,141.89,141.84,7.04971988]
[1768492131989,15.9654167,141.89,141.84,7.04971988]
[1768492132191,15.9654167,141.89,141.83,2.74982165]
[1768492132192,13.28790504,141.87,141.83,2.74982165]
[1768492132508,2.67751166,141.89,141.83,2.74982165]
[1768492132701,2.67751166,141.89,141.83,9.80037995]
[1768492132909,12.86,141.9,141.84,2.74982165]
[1768492133093,28.8254167,141.9,141.84,2.74982165]
[1768492133296,15.53751166,141.9,141.84,2.74982165]
[1768492133498,28.8254167,141.9,141.84,2.74982165]
[1768492133712,15.9654167,141.92,141.86,2.74982165]
[1768492133991,28.8254167,141.92,141.86,2.74982165]
[1768492134203,15.53751166,141.92,141.86,2.74982165]
[1768492134712,28.8254167,141.92,141.86,2.74982165]
[1768492134909,15.53751166,141.92,141.86,9.79878246]
[1768492135092,28.8254167,141.92,141.86,9.79878246]
[1768492135418,15.53751166,141.92,141.86,9.79878246]
[1768492135589,28.8254167,141.92,141.86,9.79878246]
[1768492136106,15.53751166,141.92,141.86,9.79878246]
[1768492136409,15.53751166,141.92,141.87,2.74982165]
[1768492136410,12.86,141.92,141.87,2.74982165]
[1768492136787,2.67751166,141.91,141.83,2.74982165]
[1768492136987,2.67751166,141.89,141.83,2.74982165]
[1768492137219,26.14790504,141.88,141.83,9.80025447]
[1768492137394,12.86,141.88,141.83,9.80025447]
[1768492137588,12.86,141.88,141.84,2.74982165]
[1768492138204,15.53751166,141.89,141.84,2.74982165]
[1768492138517,15.9654167,141.91,141.85,2.74982165]
[1768492138691,28.8254167,141.91,141.85,2.74982165]
[1768492139011,28.8254167,141.91,141.85,9.79929434]
[1768492139213,15.53751166,141.91,141.86,2.74982165]
[1768492139414,12.86,141.91,141.86,2.74982165]
[1768492140115,2.67751166,141.95,141.87,2.74982165]
[1768492140288,12.86,141.95,141.88,2.74982165]
[1768492140490,13.28790504,141.93,141.87,2.74982165]
[1768492140812,2.67751166,141.91,141.85,27.4235453]
[1768492140994,9.72433909,141.91,141.86,2.74982165]
[1768492141191,22.58433909,141.91,141.84,23.08785566]
[1768492141396,35.87224413,141.91,141.84,23.08785566]
[1768492141596,2.67751166,141.9,141.79,0.5450119]
[1768492141909,2.67751166,141.88,141.81,2.74982165]
[1768492142116,12.86,141.87,141.82,2.74982165]
[1768492142488,13.28790504,141.87,141.82,9.80091867]
[1768492142693,28.8254167,141.88,141.82,2.74982165]
[1768492142902,15.53751166,141.89,141.83,2.74982165]
[1768492143194,28.8254167,141.89,141.83,9.80044263]
[1768492143820,12.86,141.89,141.84,16.03772669]
[1768492144013,2.67751166,141.95,141.86,2.74982165]
[1768492144206,13.28790504,141.92,141.86,2.74982165]
[1768492144402,2.67751166,141.93,141.86,16.03772669]
[1768492144608,13.28790504,141.92,141.86,16.03772669]
[1768492144940,9.72225882,141.95,141.88,2.74982165]
[1768492145219,26.14790504,141.94,141.88,2.74982165]
[1768492145394,12.86,141.94,141.88,2.74982165]
[1768492145594,2.67751166,141.91,141.86,64.24982165]
[1768492145909,2.67751166,141.93,141.86,9.79900653]
[1768492146218,15.9654167,141.92,141.86,9.79900653]
[1768492146423,2.67751166,141.92,141.86,9.79900653]
[1768492146903,15.9654167,141.92,141.86,9.79900653]
[1768492147316,9.72381488,141.92,141.86,9.79900653]
[1768492147514,2.67751166,141.91,141.86,7.04918488]
[1768492147716,2.67751166,141.89,141.81,7.05133339]
[1768492147918,2.67751166,141.89,141.82,9.800839]
[1768492148222,26.14790504,141.9,141.84,2.74982165]
[1768492148404,12.86,141.9,141.84,2.74982165]
[1768492148905,12.86,141.9,141.86,9.79898724]
[1768492149124,12.86,141.92,141.87,2.74982165]
[1768492149627,13.28790504,141.91,141.87,2.74982165]
[1768492149924,26.14790504,141.92,141.87,2.74982165]
[1768492150304,33.19424249,141.92,141.87,2.74982165]
[1768492151123,15.9654167,141.91,141.85,2.74982165]
[1768492151325,2.67751166,141.9,141.84,2.74982165]
[1768492151512,15.9654167,141.89,141.82,2.74982165]
[1768492151713,15.53751166,141.88,141.82,2.74982165]
[1768492151912,12.86,141.87,141.83,2.74982165]
[1768492152226,12.86,141.87,141.83,9.80016667]
[1768492152625,33.19567098,141.89,141.83,9.80016667]
[1768492153018,2.67751166,141.87,141.79,0.5450119]
[1768492153215,2.67751166,141.87,141.81,2.74982165]
[1768492153416,12.86,141.86,141.82,2.74982165]
[1768492153618,26.14790504,141.87,141.82,9.8007564]
[1768492153930,26.14790504,141.88,141.83,9.8004989]
[1768492154129,15.53751166,141.88,141.83,2.74982165]
[1768492154332,15.9654167,141.87,141.81,2.74982165]
[1768492154535,12.86,141.88,141.82,2.74982165]
[1768492154832,12.86,141.88,141.83,2.74982165]
[1768492155041,2.67751166,141.9,141.83,2.74982165]
[1768492155232,12.86,141.89,141.83,2.74982165]
[1768492155427,12.86,141.89,141.84,2.74982165]
[1768492155636,9.72373488,141.92,141.84,2.74982165]
[1768492155826,26.14790504,141.91,141.84,2.74982165]
[1768492156209,12.86,141.91,141.85,7.04970038]
[1768492156538,13.28790504,141.9,141.85,9.79952203]
[1768492156930,12.86,141.91,141.86,2.74982165]
[1768492157132,26.14790504,141.91,141.86,2.74982165]
[1768492157836,12.86,141.91,141.86,2.74982165]
[1768492158137,26.14790504,141.91,141.86,9.79885349]
[1768492158440,15.53751166,141.9,141.83,2.74982165]
[1768492158629,2.67751166,141.89,141.84,7.04984627]
[1768492158841,12.86,141.91,141.86,9.7989522]
[1768492159339,13.28790504,141.92,141.87,2.74982165]
[1768492159722,2.67751166,141.93,141.87,2.74982165]
[1768492160237,2.67751166,141.93,141.87,9.79836992]
[1768492160534,12.86,141.94,141.88,2.74982165]
[1768492160755,13.28790504,141.93,141.88,2.74982165]
[1768492161542,20.33363754,141.93,141.88,2.74982165]
[1768492161717,12.86,141.94,141.89,2.74291386]
[1768492162124,33.19316152,141.94,141.89,2.74291386]
[1768492162437,13.28790504,141.93,141.87,9.79148932]
[1768492162639,22.57796803,141.94,141.87,9.79148932]
[1768492163032,13.28790504,141.93,141.87,9.79148932]
[1768492163238,13.28790504,141.93,141.88,9.79106367]
[1768492163553,2.67271155,141.89,141.83,9.79318406]
[1768492163720,2.67271155,141.93,141.85,2.74291386]
[1768492164041,26.14790504,141.92,141.86,2.74291386]
[1768492164342,12.86,141.92,141.86,2.74291386]
[1768492164534,12.86,141.92,141.86,13.28790504]
[1768492164843,12.86,141.92,141.87,2.48527003]
[1768492165635,35.86634335,141.93,141.87,2.48527003]
[1768492166220,22.57843831,141.93,141.87,2.48527003]
[1768492166542,12.86,141.93,141.88,2.48527003]
[1768492166932,35.87475918,141.93,141.86,9.53429959]
[1768492167133,13.28790504,141.91,141.86,9.53429959]
[1768492167338,13.28790504,141.91,141.86,2.48527003]
[1768492167843,20.33481747,141.91,141.86,2.48527003]
[1768492168136,23.01531963,141.92,141.86,9.53443507]
[1768492168335,20.33429113,141.92,141.87,2.48527003]
[1768492168538,33.19368005,141.93,141.87,2.48527003]
[1768492168921,2.6810285,141.9,141.82,2.48527003]
[1768492169115,13.28790504,141.89,141.84,9.53526767]
[1768492169342,13.28790504,141.89,141.84,2.48527003]
[1768492169527,15.96893354,141.89,141.84,2.48527003]
[1768492169732,7.04838822,141.88,141.84,2.48527003]
[1768492169936,20.33629326,141.88,141.84,2.48527003]
[1768492170645,13.28790504,141.86,141.81,71.03688713]
[1768492170843,2.6810285,141.87,141.79,0.5450119]
[1768492171047,2.6810285,141.85,141.75,2.58527003]
[1768492171243,2.6810285,141.85,141.78,7.05313326]
[1768492171444,13.28790504,141.83,141.77,9.53888055]
[1768492171653,13.28790504,141.83,141.75,31.02393542]
[1768492171654,15.64714171,141.83,141.76,2.48527003]
[1768492171826,2.25923667,141.76,141.7,6.12914336]
[1768492172025,12.86,141.77,141.71,2.48527003]
[1768492172223,25.04248883,141.83,141.71,2.48527003]
[1768492172450,12.86,141.86,141.77,2.48527003]
[1768492173249,13.28790504,141.81,141.76,9.5394461]
[1768492174035,2.13139121,141.8,141.72,2.48527003]
[1768492174349,12.86,141.82,141.77,2.48527003]
[1768492174550,2.12759565,141.84,141.78,2.48527003]
[1768492174753,28.27550069,141.86,141.78,2.48527003]
[1768492174973,2.12759565,141.82,141.78,61.5]
[1768492175144,2.12384368,141.8,141.71,2.48527003]
[1768492175331,2.12384368,141.8,141.74,9.54032952]
[1768492175531,12.86,141.82,141.74,15.77317507]
[1768492175733,22.46343759,141.81,141.74,7.05508395]
[1768492175939,22.46343759,141.81,141.74,9.54035398]
[1768492176140,9.17553255,141.81,141.75,9.5399291]
[1768492176349,2.12030788,141.82,141.76,13.28790504]
[1768492176553,35.31843733,141.84,141.77,2.48527003]
[1768492176749,13.28790504,141.83,141.77,2.48527003]
[1768492176950,15.40821292,141.81,141.74,7.05503614]
[1768492177137,15.40821292,141.8,141.73,9.54086618]
[1768492177337,9.166631,141.84,141.73,2.48527003]
[1768492177651,13.28790504,141.83,141.77,2.48527003]
[1768492177852,9.16590001,141.86,141.79,2.48527003]
[1768492178057,22.02590001,141.86,141.79,15.77317507]
[1768492178272,12.86,141.86,141.81,2.48527003]
[1768492178558,13.28790504,141.87,141.81,2.45527006]
[1768492178863,2.14255007,141.86,141.79,13.28790504]
[1768492179053,2.14255007,141.86,141.77,37.5477875]
[1768492179273,2.13873788,141.86,141.77,24.6877875]
[1768492179434,2.13873788,141.86,141.75,13.28790504]
[1768492179633,2.13873788,141.84,141.77,20.34155963]
[1768492179852,9.18916072,141.84,141.76,13.28790504]
[1768492180162,2.13873788,141.83,141.76,13.28790504]
[1768492180543,15.42664292,141.83,141.77,2.48527003]
[1768492180745,26.14790504,141.84,141.78,2.48527003]
[1768492180939,12.86,141.86,141.79,13.28790504]
[1768492181145,13.28790504,141.84,141.73,12.86]
[1768492181666,13.28790504,141.82,141.75,13.28790504]
[1768492181839,13.28790504,141.82,141.75,7.0542226]
[1768492181840,7.05128357,141.82,141.75,7.0542226]
[1768492182267,35.35675063,141.82,141.75,7.0542226]
[1768492182434,22.06884559,141.82,141.75,7.0542226]
[1768492182638,22.06884559,141.82,141.74,7.05499593]
[1768492182639,13.28790504,141.8,141.74,7.05499593]
[1768492182834,39.69682471,141.82,141.75,2.48527003]
[1768492183056,13.28790504,141.8,141.75,2.48527003]
[1768492183263,13.28790504,141.8,141.74,7.05499593]
[1768492183264,13.28790504,141.76,141.7,2.48527003]
[1768492183575,37.53926269,141.82,141.69,0.1]
[1768492183748,7.05367849,141.77,141.69,2.58527003]
[1768492183948,12.86,141.76,141.69,2.58527003]
[1768492184258,12.86,141.77,141.7,2.48527003]
[1768492184444,13.28790504,141.78,141.71,2.48527003]
[1768492184650,37.54488498,141.79,141.71,2.48527003]
[1768492184846,13.28790504,141.76,141.71,2.48527003]
[1768492185250,37.54488498,141.79,141.71,2.48527003]
[1768492185482,13.28790504,141.76,141.71,2.48527003]
[1768492185655,19.91317612,141.79,141.71,2.48527003]
[1768492185855,12.86,141.8,141.73,9.54093926]
[1768492186177,13.28790504,141.79,141.74,2.48527003]
[1768492186368,12.86,141.8,141.74,2.48527003]
[1768492186573,13.28790504,141.84,141.77,2.48527003]
[1768492186772,7.04920344,141.86,141.79,2.48527003]
[1768492187076,0.43,141.87,141.83,2.48527003]
[1768492187454,13.28790504,141.96,141.8,12.86]
[1768492187455,12.86,141.92,141.85,2.48527003]
[1768492187656,13.28790504,141.91,141.86,2.48527003]
[1768492187957,19.90523037,141.94,141.86,2.48527003]
[1768492187958,30.8884141,141.94,141.86,2.48527003]
[1768492188370,0.41175713,141.92,141.84,2.48527003]
[1768492188572,13.28790504,141.88,141.82,2.48527003]
[1768492188878,13.28790504,141.84,141.77,2.48527003]
[1768492189087,5.34408856,141.87,141.73,2.48527003]
[1768492189376,0.39324141,141.84,141.74,8.18477044]
[1768492189675,8.18477044,141.82,141.75,7.05431185]
[1768492189902,8.18477044,141.82,141.75,15.23908229]
[1768492190176,7.04980247,141.85,141.77,8.18477044]
[1768492190379,8.18477044,141.85,141.75,37.55099615]
[1768492190775,7.04870656,141.87,141.77,8.18477044]
[1768492190971,8.18477044,141.84,141.77,8.18477044]
[1768492191179,8.18477044,141.85,141.78,8.18477044]
[1768492191377,7.04870656,141.87,141.78,8.18477044]
[1768492191676,24.67047296,141.87,141.79,2.49213543]
[1768492191875,8.18477044,141.84,141.79,2.49213543]
[1768492192057,8.18477044,141.81,141.76,2.49213543]
[1768492192258,0.32128096,141.85,141.76,2.49213543]
[1768492192680,8.18477044,141.82,141.76,2.49213543]
[1768492192982,8.18477044,141.79,141.74,9.5472277]
[1768492193165,13.18128096,141.83,141.75,2.49213543]
[1768492193365,8.18477044,141.79,141.75,2.49213543]
[1768492193762,12.86,141.83,141.77,2.49213543]
[1768492193963,8.18477044,141.81,141.77,2.49213543]
[1768492194264,19.91113524,141.83,141.77,2.49213543]
[1768492194462,8.18477044,141.78,141.74,2.49213543]
[1768492194677,8.18477044,141.79,141.74,2.49213543]
[1768492195087,37.53787147,141.83,141.74,2.49213543]
[1768492195385,8.18477044,141.79,141.74,2.49213543]
[1768492195691,8.18477044,141.8,141.75,2.49213543]
[1768492195865,12.86,141.83,141.76,2.49213543]
[1768492196192,12.86,141.83,141.77,2.49213543]
[1768492196193,8.18477044,141.81,141.77,2.49213543]
[1768492196790,8.18477044,141.82,141.77,2.49213543]
[1768492196967,12.86,141.83,141.77,2.49213543]
[1768492197573,8.18477044,141.82,141.77,2.49213543]
[1768492198398,12.86,141.83,141.77,2.49213543]
[1768492198970,8.18477044,141.82,141.77,2.49213543]
[1768492199190,7.05034463,141.84,141.77,2.49213543]
[1768492199391,13.12574218,141.86,141.78,2.49213543]
[1768492199605,12.86,141.86,141.78,2.49213543]
[1768492199890,8.18477044,141.84,141.78,2.49213543]
[1768492200592,7.04781447,141.89,141.82,2.49213543]
[1768492200798,4.55011356,141.9,141.8,7.05218617]
[1768492200799,4.37276382,141.9,141.83,2.49213543]
[1768492201010,8.18477044,141.89,141.83,2.49213543]
[1768492201376,12.55753426,141.9,141.83,10.67690587]
[1768492201575,4.37276382,141.9,141.86,2.49213543]
[1768492201886,1.79354219,141.9,141.87,2.49213543]
[1768492202081,20.06516307,141.95,141.88,2.49213543]
[1768492202533,2.50598524,141.92,141.86,68.54885656]
[1768492202672,10.69075568,141.9,141.84,2.49213543]
[1768492202872,2.50598524,141.89,141.84,2.49213543]
[1768492203485,2.50598524,141.89,141.83,8.18477044]
[1768492203486,2.50598524,141.91,141.85,2.49213543]
[1768492203693,8.18477044,141.89,141.83,9.54279941]
[1768492203891,2.50598524,141.9,141.83,9.54279941]
[1768492204070,8.18477044,141.89,141.83,9.54279941]
[1768492204472,2.50598524,141.9,141.83,9.54279941]
[1768492204676,8.18477044,141.89,141.84,2.49213543]
[1768492204878,2.50598524,141.9,141.84,2.49213543]
[1768492205074,8.18477044,141.89,141.84,2.49213543]
[1768492205291,2.50598524,141.9,141.84,2.49213543]
[1768492205677,8.18477044,141.89,141.84,9.54218107]
[1768492205899,2.50598524,141.92,141.85,2.49213543]
[1768492206406,2.50598524,141.96,141.89,2.49213543]
[1768492206701,2.50598524,141.96,141.9,2.49213543]
[1768492206879,0.2,141.97,141.9,2.49213543]
[1768492207079,8.18477044,141.96,141.9,2.49213543]
[1768492207401,10.89075568,141.97,141.91,2.49213543]
[1768492207610,8.18477044,141.96,141.91,2.49213543]
[1768492207916,2.70598524,141.97,141.91,9.53884272]
[1768492208212,0.2,141.97,141.93,2.49213543]
[1768492209480,0.2,141.97,141.94,2.49213543]
[1768492209904,0.2,141.97,141.94,9.53730014]
[1768492210502,0.2,141.97,141.94,2.49213543]
[1768492210705,0.2,141.97,141.92,2.49213543]
[1768492211000,0.2,141.97,141.92,10.67690587]
[1768492211176,0.2,141.97,141.92,2.49213543]
[1768492211378,0.2,141.97,141.92,10.67690587]
[1768492211701,2.50598524,141.96,141.9,2.49213543]
[1768492211907,2.50598524,141.96,141.9,10.67690587]
[1768492212084,10.69075568,141.96,141.9,10.67690587]
[1768492212399,10.69075568,141.96,141.9,17.7238855]
[1768492212696,2.50598524,141.96,141.91,8.18477044]
[1768492212907,10.69075568,141.96,141.9,17.7238855]
[1768492213074,2.50598524,141.96,141.9,9.53911506]
[1768492213281,0.2,141.97,141.92,2.49213543]
[1768492213493,0.2,141.97,141.92,10.67690587]
[1768492213708,10.69075568,141.96,141.9,9.53911506]
[1768492213903,10.69075568,141.96,141.89,7.047568]
[1768492213904,10.69075568,141.95,141.89,7.047568]
[1768492214096,8.18477044,141.94,141.88,10.67690587]
[1768492214411,10.69075568,141.95,141.89,17.72428709]
[1768492214611,2.50598524,141.95,141.89,2.49213543]
[1768492214791,2.50598524,141.94,141.89,2.49213543]
[1768492214987,10.69075568,141.94,141.89,2.49213543]
[1768492215710,2.50598524,141.93,141.88,7.04813613]
[1768492216006,2.50598524,141.95,141.88,17.725042]
[1768492216187,23.55075568,141.95,141.89,10.67690587]
[1768492216506,8.18477044,141.94,141.89,2.49213543]
[1768492216723,2.50598524,141.91,141.85,2.49213543]
[1768492216888,2.50598524,141.9,141.85,9.54152882]
[1768492217088,10.69075568,141.9,141.85,9.54152882]
[1768492217283,2.50598524,141.9,141.86,7.04915528]
[1768492217787,2.50598524,141.94,141.87,7.04866071]
[1768492218016,10.69075568,141.92,141.86,15.23381887]
[1768492218209,10.69075568,141.92,141.86,7.04904843]
[1768492218392,2.50598524,141.92,141.86,7.04904843]
[1768492218591,2.50598524,141.92,141.86,17.7259543]
[1768492219085,2.50598524,141.94,141.88,2.49213543]
[1768492219288,10.69075568,141.94,141.88,2.49213543]
[1768492219700,10.69075568,141.93,141.88,2.49213543]
[1768492220686,2.29885639,141.92,141.86,9.4155114]
[1768492220987,2.29885639,141.96,141.89,2.36646297]
[1768492221192,23.34362683,141.95,141.89,10.55123341]
[1768492221404,15.15885639,141.95,141.9,8.18477044]
[1768492221706,15.15885639,141.95,141.89,10.55123341]
[1768492222011,2.49885639,141.97,141.92,8.18477044]
[1768492224112,2.49885639,141.97,141.94,2.36646297]
[1768492224113,0.2,141.97,141.94,2.36646297]
[1768492224286,2.22604799,142.01,141.95,10.42107951]
[1768492224496,10.41081843,142.01,141.93,2.23630907]
[1768492224691,50.95139471,142.07,141.93,2.23630907]
[1768492224692,23.27081843,142.0,141.94,8.18477044]
[1768492224892,15.08604799,142.0,141.94,17.4662195]
[1768492225402,2.22604799,142.0,141.95,2.23630907]
[1768492225990,2.22604799,141.99,141.93,9.28192156]
[1768492226192,2.22604799,141.99,141.94,8.18477044]
[1768492226408,2.22604799,141.99,141.93,2.23630907]
[1768492226615,2.22604799,141.99,141.93,10.42107951]
[1768492226803,10.41081843,141.99,141.93,10.42107951]
[1768492227003,2.22604799,141.98,141.93,10.42107951]
[1768492227301,2.22604799,142.0,141.95,10.42107951]
[1768492227499,2.22604799,142.02,141.97,10.42107951]
[1768492227707,15.08604799,142.02,141.98,8.18477044]
[1768492227901,12.86,142.02,141.98,8.18477044]